fUST/lending_fUST_20260519
["ID","MTS","AMOUNT","RATE_DAILY","PERIOD"]
[422580153,1779123045000,-500.0,8.493e-05,2]
[422580155,1779123045000,-3262.96,8.493e-05,2]
[422580151,1779123045000,-6849.89,8.493e-05,2]
[422580149,1779123045000,-500.0,8.493e-05,2]
[422580145,1779123045000,-500.0,8.493e-05,2]
[422580130,1779123045000,-2138.77,8.493e-05,2]
[422580127,1779123045000,-729.58,8.493e-05,2]
[422580123,1779123045000,-500.0,8.493e-05,2]
[422580147,1779123045000,-172.3196,8.493e-05,2]
[422580314,1779123046000,-500.0,8.767e-05,2]
[422580303,1779123046000,-500.0,8.767e-05,2]
[422580312,1779123046000,-682.33,8.767e-05,2]
[422580316,1779123046000,-1368.3,8.767e-05,2]
[422580301,1779123046000,-965.48,8.767e-05,2]
[422580291,1779123046000,-500.0,8.767e-05,2]
[422580299,1779123046000,-500.0,8.767e-05,2]
[422580295,1779123046000,-500.0,8.767e-05,2]
[422580297,1779123046000,-1379.67,8.767e-05,2]
[422580293,1779123046000,-583.07,8.767e-05,2]
[422580285,1779123046000,-2105.41,8.767e-05,2]
[422580310,1779123046000,-501.43,8.767e-05,2]
[422580304,1779123046000,-500.0,8.767e-05,2]
[422580342,1779123046000,-500.0,8.767e-05,2]
[422580306,1779123046000,-473.8546354,8.767e-05,2]
[422580318,1779123046000,-500.0,8.767e-05,2]
[422580333,1779123046000,-1263.49,8.767e-05,2]
[422580331,1779123046000,-6315.37,8.767e-05,2]
[422580335,1779123046000,-2689.8,8.767e-05,2]
[422580337,1779123046000,-548.02,8.767e-05,2]
[422580339,1779123046000,-1276.47,8.767e-05,2]
[422580324,1779123046000,-500.0,8.767e-05,2]
[422580340,1779123046000,-2195.14,8.767e-05,2]
[422580328,1779123046000,-500.0,8.767e-05,2]
[422580330,1779123046000,-731.24,8.767e-05,2]
[422580326,1779123046000,-852.73,8.767e-05,2]
[422580289,1779123046000,-500.0,8.767e-05,2]
[422580308,1779123046000,-942.8,8.767e-05,2]
[422580282,1779123046000,-629.38,8.767e-05,2]
[422580269,1779123046000,-500.0,8.767e-05,2]
[422580284,1779123046000,-727.24,8.767e-05,2]
[422580353,1779123046000,-2443.64,8.767e-05,2]
[422580228,1779123046000,-500.0,8.767e-05,2]
[422580241,1779123046000,-500.0,8.767e-05,2]
[422580232,1779123046000,-500.0,8.767e-05,2]
[422580233,1779123046000,-848.65,8.767e-05,2]
[422580235,1779123046000,-500.0,8.767e-05,2]
[422580237,1779123046000,-931.72,8.767e-05,2]
[422580239,1779123046000,-500.0,8.767e-05,2]
[422580230,1779123046000,-500.0,8.767e-05,2]
[422580243,1779123046000,-1298.78,8.767e-05,2]
[422580245,1779123046000,-591.75,8.767e-05,2]
[422580247,1779123046000,-500.0,8.767e-05,2]
[422580251,1779123046000,-500.0,8.767e-05,2]
[422580287,1779123046000,-500.0,8.767e-05,2]
[422580257,1779123046000,-500.0,8.767e-05,2]
[422580253,1779123046000,-1994.6,8.767e-05,2]
[422580259,1779123046000,-714.69,8.767e-05,2]
[422580249,1779123046000,-500.0,8.767e-05,2]
[422580265,1779123046000,-500.0,8.767e-05,2]
[422580263,1779123046000,-500.0,8.767e-05,2]
[422580261,1779123046000,-595.06,8.767e-05,2]
[422580270,1779123046000,-500.0,8.767e-05,2]
[422580267,1779123046000,-1164.37,8.767e-05,2]
[422580272,1779123046000,-769.62,8.767e-05,2]
[422580278,1779123046000,-846.67,8.767e-05,2]
[422580274,1779123046000,-500.0,8.767e-05,2]
[422580276,1779123046000,-1214.01,8.767e-05,2]
[422580280,1779123046000,-500.0,8.767e-05,2]
[422580255,1779123046000,-500.0,8.767e-05,2]
[422580355,1779123046000,-769.99,8.767e-05,2]
[422580378,1779123046000,-2019.31,8.767e-05,2]
[422580359,1779123046000,-500.0,8.767e-05,2]
[422580414,1779123046000,-8223.32,8.767e-05,2]
[422580416,1779123046000,-3653.47,8.767e-05,2]
[422580427,1779123046000,-1839.22,8.767e-05,2]
[422580418,1779123046000,-500.0,8.767e-05,2]
[422580431,1779123046000,-864.85,8.767e-05,2]
[422580429,1779123046000,-3567.31,8.767e-05,2]
[422580433,1779123046000,-1037.29,8.767e-05,2]
[422580425,1779123046000,-1767.69,8.767e-05,2]
[422580420,1779123046000,-500.0,8.767e-05,2]
[422580423,1779123046000,-500.0,8.767e-05,2]
[422580422,1779123046000,-500.0,8.767e-05,2]
[422580435,1779123046000,-2222.57,8.767e-05,2]
[422580437,1779123046000,-500.0,8.767e-05,2]
[422580412,1779123046000,-365.11583049,8.767e-05,2]
[422580439,1779123046000,-2548.68,8.767e-05,2]
[422580442,1779123046000,-2138.77,8.767e-05,2]
[422580357,1779123046000,-2547.02,8.767e-05,2]
[422580444,1779123046000,-6288.67,8.767e-05,2]
[422580449,1779123046000,-1749.26,8.767e-05,2]
[422580453,1779123046000,-500.0,8.767e-05,2]
[422580451,1779123046000,-1177.62,8.767e-05,2]
[422580454,1779123046000,-500.0,8.767e-05,2]
[422580456,1779123046000,-2665.1,8.767e-05,2]
[422580458,1779123046000,-500.0,8.767e-05,2]
[422580460,1779123046000,-500.0,8.767e-05,2]
[422580462,1779123046000,-6849.89,8.767e-05,2]
[422580464,1779123046000,-482.50378706,8.767e-05,2]
[422580465,1779123046000,-3262.96,8.767e-05,2]
[422580441,1779123046000,-729.58,8.767e-05,2]
[422580410,1779123046000,-2731.18,8.767e-05,2]
[422580446,1779123046000,-2470.28,8.767e-05,2]
[422580407,1779123046000,-1068.05,8.767e-05,2]
[422580408,1779123046000,-40105.0,8.767e-05,2]
[422580346,1779123046000,-500.0,8.767e-05,2]
[422580344,1779123046000,-162.76707521,8.767e-05,2]
[422580348,1779123046000,-500.0,8.767e-05,2]
[422580350,1779123046000,-1965.58,8.767e-05,2]
[422580351,1779123046000,-500.0,8.767e-05,2]
[422580361,1779123046000,-682.75,8.767e-05,2]
[422580365,1779123046000,-2297.92,8.767e-05,2]
[422580369,1779123046000,-500.0,8.767e-05,2]
[422580371,1779123046000,-1866.46,8.767e-05,2]
[422580367,1779123046000,-500.0,8.767e-05,2]
[422580372,1779123046000,-4445.71,8.767e-05,2]
[422580384,1779123046000,-1338.72,8.767e-05,2]
[422580382,1779123046000,-500.0,8.767e-05,2]
[422580363,1779123046000,-593.85,8.767e-05,2]
[422580380,1779123046000,-7816.15,8.767e-05,2]
[422580403,1779123046000,-500.0,8.767e-05,2]
[422580374,1779123046000,-2204.42,8.767e-05,2]
[422580405,1779123046000,-582.8,8.767e-05,2]
[422580397,1779123046000,-1827.21,8.767e-05,2]
[422580401,1779123046000,-568.34,8.767e-05,2]
[422580399,1779123046000,-991.54,8.767e-05,2]
[422580395,1779123046000,-5030.86,8.767e-05,2]
[422580393,1779123046000,-500.0,8.767e-05,2]
[422580391,1779123046000,-842.91,8.767e-05,2]
[422580389,1779123046000,-5606.13,8.767e-05,2]
[422580388,1779123046000,-500.0,8.767e-05,2]
[422580376,1779123046000,-514.67,8.767e-05,2]
[422580386,1779123046000,-500.0,8.767e-05,2]
[422580517,1779123047000,-500.0,9.041e-05,2]
[422580504,1779123047000,-500.0,9.041e-05,2]
[422580502,1779123047000,-500.0,9.041e-05,2]
[422580511,1779123047000,-1136.8,9.041e-05,2]
[422580515,1779123047000,-629.37,9.041e-05,2]
[422580513,1779123047000,-500.0,9.041e-05,2]
[422580507,1779123047000,-500.0,9.041e-05,2]
[422580529,1779123047000,-500.0,9.041e-05,2]
[422580538,1779123047000,-500.0,9.041e-05,2]
[422580531,1779123047000,-600.14,9.041e-05,2]
[422580533,1779123047000,-290.47900367,9.041e-05,2]
[422580536,1779123047000,-500.0,9.041e-05,2]
[422580535,1779123047000,-827.61,9.041e-05,2]
[422580544,1779123047000,-500.0,9.041e-05,2]
[422580525,1779123047000,-500.0,9.041e-05,2]
[422580509,1779123047000,-500.0,9.041e-05,2]
[422580519,1779123047000,-500.0,9.041e-05,2]
[422580505,1779123047000,-500.0,9.041e-05,2]
[422580484,1779123047000,-500.0,9.041e-05,2]
[422580500,1779123047000,-500.0,9.041e-05,2]
[422580542,1779123047000,-2295.59,9.041e-05,2]
[422580479,1779123047000,-185.0,8.949e-05,2]
[422580481,1779123047000,-165628.01156214,9e-05,2]
[422580482,1779123047000,-2843.1217,9.041e-05,2]
[422580477,1779123047000,-443.0,8.949e-05,2]
[422580471,1779123047000,-1452.03,8.767e-05,2]
[422580469,1779123047000,-500.0,8.767e-05,2]
[422580498,1779123047000,-669.83,9.041e-05,2]
[422580475,1779123047000,-647.0,8.949e-05,2]
[422580473,1779123047000,-1102.62242678,8.86e-05,2]
[422580486,1779123047000,-500.0,9.041e-05,2]
[422580488,1779123047000,-500.0,9.041e-05,2]
[422580490,1779123047000,-570.4,9.041e-05,2]
[422580496,1779123047000,-500.0,9.041e-05,2]
[422580494,1779123047000,-500.0,9.041e-05,2]
[422580492,1779123047000,-1087.65,9.041e-05,2]
[422580467,1779123047000,-500.0,8.767e-05,2]
[422580521,1779123047000,-1261.32,9.041e-05,2]
[422580557,1779123047000,-500.0,9.041e-05,2]
[422580540,1779123047000,-500.0,9.041e-05,2]
[422580589,1779123047000,-1164.37,9.041e-05,2]
[422580593,1779123047000,-500.0,9.041e-05,2]
[422580591,1779123047000,-500.0,9.041e-05,2]
[422580601,1779123047000,-846.67,9.041e-05,2]
[422580605,1779123047000,-629.38,9.041e-05,2]
[422580599,1779123047000,-1214.01,9.041e-05,2]
[422580597,1779123047000,-500.0,9.041e-05,2]
[422580580,1779123047000,-500.0,9.041e-05,2]
[422580603,1779123047000,-500.0,9.041e-05,2]
[422580607,1779123047000,-727.24,9.041e-05,2]
[422580609,1779123047000,-2105.41,9.041e-05,2]
[422580611,1779123047000,-500.0,9.041e-05,2]
[422580615,1779123047000,-500.0,9.041e-05,2]
[422580618,1779123047000,-583.07,9.041e-05,2]
[422580622,1779123047000,-1379.67,9.041e-05,2]
[422580527,1779123047000,-500.0,9.041e-05,2]
[422580595,1779123047000,-769.62,9.041e-05,2]
[422580576,1779123047000,-1994.6,9.041e-05,2]
[422580613,1779123047000,-500.0,9.041e-05,2]
[422580579,1779123047000,-500.0,9.041e-05,2]
[422580588,1779123047000,-500.0,9.041e-05,2]
[422580523,1779123047000,-1248.23,9.041e-05,2]
[422580559,1779123047000,-500.0,9.041e-05,2]
[422580549,1779123047000,-500.0,9.041e-05,2]
[422580565,1779123047000,-500.0,9.041e-05,2]
[422580551,1779123047000,-848.65,9.041e-05,2]
[422580547,1779123047000,-500.0,9.041e-05,2]
[422580561,1779123047000,-1298.78,9.041e-05,2]
[422580620,1779123047000,-500.0,9.041e-05,2]
[422580545,1779123047000,-500.0,9.041e-05,2]
[422580567,1779123047000,-500.0,9.041e-05,2]
[422580555,1779123047000,-931.72,9.041e-05,2]
[422580568,1779123047000,-500.0,9.041e-05,2]
[422580553,1779123047000,-500.0,9.041e-05,2]
[422580582,1779123047000,-714.69,9.041e-05,2]
[422580584,1779123047000,-595.06,9.041e-05,2]
[422580563,1779123047000,-591.75,9.041e-05,2]
[422580586,1779123047000,-500.0,9.041e-05,2]
[422580801,1779123048000,-172.3196,9.315e-05,2]
[422580799,1779123048000,-268.388,9.281e-05,2]
[422580807,1779123048000,-500.0,9.315e-05,2]
[422580797,1779123048000,-3633.95525408,9.17e-05,2]
[422580789,1779123048000,-3262.96,9.041e-05,2]
[422580795,1779123048000,-10000.0,9.123e-05,2]
[422580787,1779123048000,-6849.89,9.041e-05,2]
[422580793,1779123048000,-196.37671782,9.041e-05,2]
[422580775,1779123048000,-1177.62,9.041e-05,2]
[422580773,1779123048000,-1749.26,9.041e-05,2]
[422580811,1779123048000,-570.4,9.315e-05,2]
[422580781,1779123048000,-2665.1,9.041e-05,2]
[422580791,1779123048000,-500.0,9.041e-05,2]
[422580809,1779123048000,-500.0,9.315e-05,2]
[422580831,1779123048000,-500.0,9.315e-05,2]
[422580815,1779123048000,-500.0,9.315e-05,2]
[422580803,1779123048000,-2843.1217,9.315e-05,2]
[422580813,1779123048000,-1087.65,9.315e-05,2]
[422580819,1779123048000,-669.83,9.315e-05,2]
[422580821,1779123048000,-500.0,9.315e-05,2]
[422580823,1779123048000,-500.0,9.315e-05,2]
[422580827,1779123048000,-500.0,9.315e-05,2]
[422580830,1779123048000,-500.0,9.315e-05,2]
[422580833,1779123048000,-1136.8,9.315e-05,2]
[422580825,1779123048000,-500.0,9.315e-05,2]
[422580841,1779123048000,-500.0,9.315e-05,2]
[422580837,1779123048000,-629.37,9.315e-05,2]
[422580839,1779123048000,-500.0,9.315e-05,2]
[422580777,1779123048000,-500.0,9.041e-05,2]
[422580805,1779123048000,-500.0,9.315e-05,2]
[422580785,1779123048000,-233.11830739,9.041e-05,2]
[422580736,1779123048000,-8223.32,9.041e-05,2]
[422580771,1779123048000,-2470.28,9.041e-05,2]
[422580716,1779123048000,-500.0,9.041e-05,2]
[422580714,1779123048000,-842.91,9.041e-05,2]
[422580712,1779123048000,-5606.13,9.041e-05,2]
[422580731,1779123048000,-1068.05,9.041e-05,2]
[422580733,1779123048000,-40105.0,9.041e-05,2]
[422580718,1779123048000,-5030.86,9.041e-05,2]
[422580729,1779123048000,-582.8,9.041e-05,2]
[422580725,1779123048000,-568.34,9.041e-05,2]
[422580735,1779123048000,-2731.18,9.041e-05,2]
[422580720,1779123048000,-1827.21,9.041e-05,2]
[422580723,1779123048000,-991.54,9.041e-05,2]
[422580727,1779123048000,-500.0,9.041e-05,2]
[422580835,1779123048000,-500.0,9.315e-05,2]
[422580738,1779123048000,-3653.47,9.041e-05,2]
[422580783,1779123048000,-500.0,9.041e-05,2]
[422580742,1779123048000,-500.0,9.041e-05,2]
[422580744,1779123048000,-500.0,9.041e-05,2]
[422580746,1779123048000,-500.0,9.041e-05,2]
[422580752,1779123048000,-3567.31,9.041e-05,2]
[422580755,1779123048000,-864.85,9.041e-05,2]
[422580748,1779123048000,-1767.69,9.041e-05,2]
[422580756,1779123048000,-1037.29,9.041e-05,2]
[422580750,1779123048000,-1839.22,9.041e-05,2]
[422580758,1779123048000,-2222.57,9.041e-05,2]
[422580760,1779123048000,-500.0,9.041e-05,2]
[422580762,1779123048000,-2548.68,9.041e-05,2]
[422580767,1779123048000,-2138.77,9.041e-05,2]
[422580769,1779123048000,-6288.67,9.041e-05,2]
[422580765,1779123048000,-729.58,9.041e-05,2]
[422580779,1779123048000,-500.0,9.041e-05,2]
[422580740,1779123048000,-500.0,9.041e-05,2]
[422580847,1779123048000,-500.0,9.315e-05,2]
[422580817,1779123048000,-500.0,9.315e-05,2]
[422580849,1779123048000,-500.0,9.315e-05,2]
[422580920,1779123048000,-727.24,9.315e-05,2]
[422580923,1779123048000,-500.0,9.315e-05,2]
[422580905,1779123048000,-500.0,9.315e-05,2]
[422580909,1779123048000,-769.62,9.315e-05,2]
[422580911,1779123048000,-500.0,9.315e-05,2]
[422580907,1779123048000,-500.0,9.315e-05,2]
[422580912,1779123048000,-1214.01,9.315e-05,2]
[422580925,1779123048000,-468.11832693,9.315e-05,2]
[422580927,1779123048000,-500.0,9.315e-05,2]
[422580929,1779123048000,-583.07,9.315e-05,2]
[422580944,1779123048000,-501.43,9.315e-05,2]
[422580935,1779123048000,-500.0,9.315e-05,2]
[422580931,1779123048000,-500.0,9.315e-05,2]
[422580940,1779123048000,-500.0,9.315e-05,2]
[422580918,1779123048000,-629.38,9.315e-05,2]
[422580936,1779123048000,-965.48,9.315e-05,2]
[422580942,1779123048000,-942.8,9.315e-05,2]
[422580950,1779123048000,-500.0,9.315e-05,2]
[422580946,1779123048000,-682.33,9.315e-05,2]
[422580949,1779123048000,-1368.3,9.315e-05,2]
[422580948,1779123048000,-500.0,9.315e-05,2]
[422580952,1779123048000,-852.73,9.315e-05,2]
[422580953,1779123048000,-500.0,9.315e-05,2]
[422580951,1779123048000,-500.0,9.315e-05,2]
[422580954,1779123048000,-731.24,9.315e-05,2]
[422580956,1779123048000,-1263.49,9.315e-05,2]
[422580955,1779123048000,-6315.37,9.315e-05,2]
[422580957,1779123048000,-2689.8,9.315e-05,2]
[422580845,1779123048000,-1248.23,9.315e-05,2]
[422580958,1779123048000,-548.02,9.315e-05,2]
[422580938,1779123048000,-500.0,9.315e-05,2]
[422580914,1779123048000,-846.67,9.315e-05,2]
[422580933,1779123048000,-1379.67,9.315e-05,2]
[422580916,1779123048000,-500.0,9.315e-05,2]
[422580843,1779123048000,-1261.32,9.315e-05,2]
[422580922,1779123048000,-2105.41,9.315e-05,2]
[422580851,1779123048000,-500.0,9.315e-05,2]
[422580857,1779123048000,-500.0,9.315e-05,2]
[422580853,1779123048000,-600.14,9.315e-05,2]
[422580855,1779123048000,-827.61,9.315e-05,2]
[422580868,1779123048000,-500.0,9.315e-05,2]
[422580866,1779123048000,-500.0,9.315e-05,2]
[422580864,1779123048000,-500.0,9.315e-05,2]
[422580861,1779123048000,-500.0,9.315e-05,2]
[422580859,1779123048000,-261.49737583,9.315e-05,2]
[422580870,1779123048000,-500.0,9.315e-05,2]
[422580874,1779123048000,-500.0,9.315e-05,2]
[422580875,1779123048000,-931.72,9.315e-05,2]
[422580872,1779123048000,-848.65,9.315e-05,2]
[422580863,1779123048000,-2295.59,9.315e-05,2]
[422580877,1779123048000,-500.0,9.315e-05,2]
[422580888,1779123048000,-500.0,9.315e-05,2]
[422580903,1779123048000,-1164.37,9.315e-05,2]
[422580897,1779123048000,-595.06,9.315e-05,2]
[422580899,1779123048000,-500.0,9.315e-05,2]
[422580884,1779123048000,-500.0,9.315e-05,2]
[422580886,1779123048000,-500.0,9.315e-05,2]
[422580879,1779123048000,-500.0,9.315e-05,2]
[422580901,1779123048000,-500.0,9.315e-05,2]
[422580883,1779123048000,-591.75,9.315e-05,2]
[422580892,1779123048000,-500.0,9.315e-05,2]
[422580881,1779123048000,-1298.78,9.315e-05,2]
[422580895,1779123048000,-714.69,9.315e-05,2]
[422580890,1779123048000,-1994.6,9.315e-05,2]
[422580894,1779123048000,-500.0,9.315e-05,2]
[422581048,1779123049000,-2222.57,9.315e-05,2]
[422581040,1779123049000,-1839.22,9.315e-05,2]
[422581032,1779123049000,-500.0,9.315e-05,2]
[422581027,1779123049000,-8223.32,9.315e-05,2]
[422581016,1779123049000,-568.34,9.315e-05,2]
[422581028,1779123049000,-3653.47,9.315e-05,2]
[422581036,1779123049000,-500.0,9.315e-05,2]
[422581038,1779123049000,-1767.69,9.315e-05,2]
[422581034,1779123049000,-500.0,9.315e-05,2]
[422581025,1779123049000,-2731.18,9.315e-05,2]
[422581049,1779123049000,-500.0,9.315e-05,2]
[422581023,1779123049000,-40105.0,9.315e-05,2]
[422581030,1779123049000,-500.0,9.315e-05,2]
[422581053,1779123049000,-729.58,9.315e-05,2]
[422581061,1779123049000,-1749.26,9.315e-05,2]
[422581044,1779123049000,-864.85,9.315e-05,2]
[422581042,1779123049000,-3567.31,9.315e-05,2]
[422581046,1779123049000,-1037.29,9.315e-05,2]
[422581055,1779123049000,-2138.77,9.315e-05,2]
[422581057,1779123049000,-6288.67,9.315e-05,2]
[422581059,1779123049000,-2470.28,9.315e-05,2]
[422581063,1779123049000,-1177.62,9.315e-05,2]
[422581065,1779123049000,-500.0,9.315e-05,2]
[422581066,1779123049000,-500.0,9.315e-05,2]
[422581068,1779123049000,-2665.1,9.315e-05,2]
[422581070,1779123049000,-240.1967995,9.315e-05,2]
[422581072,1779123049000,-6849.89,9.315e-05,2]
[422581074,1779123049000,-3262.96,9.315e-05,2]
[422581021,1779123049000,-1068.05,9.315e-05,2]
[422581051,1779123049000,-2548.68,9.315e-05,2]
[422581018,1779123049000,-500.0,9.315e-05,2]
[422580963,1779123049000,-500.0,9.315e-05,2]
[422580994,1779123049000,-514.67,9.315e-05,2]
[422581076,1779123049000,-500.0,9.315e-05,2]
[422580962,1779123049000,-500.0,9.315e-05,2]
[422580965,1779123049000,-500.0,9.315e-05,2]
[422580967,1779123049000,-1965.58,9.315e-05,2]
[422580960,1779123049000,-2195.14,9.315e-05,2]
[422580959,1779123049000,-1276.47,9.315e-05,2]
[422580969,1779123049000,-500.0,9.315e-05,2]
[422580971,1779123049000,-2443.64,9.315e-05,2]
[422580980,1779123049000,-593.85,9.315e-05,2]
[422580978,1779123049000,-682.75,9.315e-05,2]
[422580985,1779123049000,-500.0,9.315e-05,2]
[422580976,1779123049000,-500.0,9.315e-05,2]
[422580982,1779123049000,-2297.92,9.315e-05,2]
[422580973,1779123049000,-769.99,9.315e-05,2]
[422581020,1779123049000,-582.8,9.315e-05,2]
[422580975,1779123049000,-2547.02,9.315e-05,2]
[422580988,1779123049000,-1866.46,9.315e-05,2]
[422580992,1779123049000,-2204.42,9.315e-05,2]
[422581003,1779123049000,-500.0,9.315e-05,2]
[422581009,1779123049000,-500.0,9.315e-05,2]
[422581007,1779123049000,-842.91,9.315e-05,2]
[422580991,1779123049000,-4445.71,9.315e-05,2]
[422581005,1779123049000,-5606.13,9.315e-05,2]
[422581001,1779123049000,-1338.72,9.315e-05,2]
[422581000,1779123049000,-500.0,9.315e-05,2]
[422581011,1779123049000,-5030.86,9.315e-05,2]
[422581012,1779123049000,-1827.21,9.315e-05,2]
[422580998,1779123049000,-7816.15,9.315e-05,2]
[422581014,1779123049000,-991.54,9.315e-05,2]
[422580996,1779123049000,-2019.31,9.315e-05,2]
[422580983,1779123049000,-500.0,9.315e-05,2]
[422581077,1779123049000,-176.08614578,9.542e-05,2]
[422581202,1779123049000,-2105.41,9.589e-05,2]
[422581084,1779123049000,-2712.4901,9.589e-05,2]
[422581160,1779123049000,-1298.78,9.589e-05,2]
[422581147,1779123049000,-500.0,9.589e-05,2]
[422581162,1779123049000,-591.75,9.589e-05,2]
[422581149,1779123049000,-500.0,9.589e-05,2]
[422581156,1779123049000,-500.0,9.589e-05,2]
[422581152,1779123049000,-500.0,9.589e-05,2]
[422581166,1779123049000,-500.0,9.589e-05,2]
[422581164,1779123049000,-500.0,9.589e-05,2]
[422581151,1779123049000,-848.65,9.589e-05,2]
[422581154,1779123049000,-931.72,9.589e-05,2]
[422581168,1779123049000,-500.0,9.589e-05,2]
[422581172,1779123049000,-500.0,9.589e-05,2]
[422581170,1779123049000,-1994.6,9.589e-05,2]
[422581174,1779123049000,-500.0,9.589e-05,2]
[422581158,1779123049000,-500.0,9.589e-05,2]
[422581176,1779123049000,-714.69,9.589e-05,2]
[422581177,1779123049000,-595.06,9.589e-05,2]
[422581185,1779123049000,-500.0,9.589e-05,2]
[422581179,1779123049000,-500.0,9.589e-05,2]
[422581085,1779123049000,-597.1395,9.589e-05,2]
[422581183,1779123049000,-1164.37,9.589e-05,2]
[422581195,1779123049000,-846.67,9.589e-05,2]
[422581191,1779123049000,-500.0,9.589e-05,2]
[422581193,1779123049000,-1214.01,9.589e-05,2]
[422581181,1779123049000,-500.0,9.589e-05,2]
[422581197,1779123049000,-500.0,9.589e-05,2]
[422581198,1779123049000,-629.38,9.589e-05,2]
[422581200,1779123049000,-727.24,9.589e-05,2]
[422581204,1779123049000,-500.0,9.589e-05,2]
[422581206,1779123049000,-500.0,9.589e-05,2]
[422581187,1779123049000,-500.0,9.589e-05,2]
[422581145,1779123049000,-500.0,9.589e-05,2]
[422581189,1779123049000,-769.62,9.589e-05,2]
[422581143,1779123049000,-500.0,9.589e-05,2]
[422581141,1779123049000,-2295.59,9.589e-05,2]
[422581082,1779123049000,-195.71147035,9.567e-05,2]
[422581080,1779123049000,-196.33007585,9.567e-05,2]
[422581087,1779123049000,-500.0,9.589e-05,2]
[422581091,1779123049000,-500.0,9.589e-05,2]
[422581089,1779123049000,-500.0,9.589e-05,2]
[422581093,1779123049000,-570.4,9.589e-05,2]
[422581097,1779123049000,-500.0,9.589e-05,2]
[422581099,1779123049000,-500.0,9.589e-05,2]
[422581110,1779123049000,-500.0,9.589e-05,2]
[422581104,1779123049000,-500.0,9.589e-05,2]
[422581101,1779123049000,-669.83,9.589e-05,2]
[422581112,1779123049000,-500.0,9.589e-05,2]
[422581106,1779123049000,-500.0,9.589e-05,2]
[422581102,1779123049000,-500.0,9.589e-05,2]
[422581095,1779123049000,-1087.65,9.589e-05,2]
[422581116,1779123049000,-500.0,9.589e-05,2]
[422581128,1779123049000,-500.0,9.589e-05,2]
[422581108,1779123049000,-500.0,9.589e-05,2]
[422581126,1779123049000,-1248.23,9.589e-05,2]
[422581124,1779123049000,-1261.32,9.589e-05,2]
[422581139,1779123049000,-500.0,9.589e-05,2]
[422581122,1779123049000,-500.0,9.589e-05,2]
[422581137,1779123049000,-500.0,9.589e-05,2]
[422581132,1779123049000,-500.0,9.589e-05,2]
[422581133,1779123049000,-600.14,9.589e-05,2]
[422581130,1779123049000,-500.0,9.589e-05,2]
[422581120,1779123049000,-500.0,9.589e-05,2]
[422581118,1779123049000,-629.37,9.589e-05,2]
[422581114,1779123049000,-1136.8,9.589e-05,2]
[422581135,1779123049000,-827.61,9.589e-05,2]
[422581255,1779123050000,-548.02,9.589e-05,2]
[422581274,1779123050000,-2547.02,9.589e-05,2]
[422581263,1779123050000,-500.0,9.589e-05,2]
[422581253,1779123050000,-2689.8,9.589e-05,2]
[422581266,1779123050000,-1965.58,9.589e-05,2]
[422581268,1779123050000,-500.0,9.589e-05,2]
[422581270,1779123050000,-2443.64,9.589e-05,2]
[422581272,1779123050000,-769.99,9.589e-05,2]
[422581283,1779123050000,-500.0,9.589e-05,2]
[422581292,1779123050000,-514.67,9.589e-05,2]
[422581287,1779123050000,-1866.46,9.589e-05,2]
[422581276,1779123050000,-500.0,9.589e-05,2]
[422581291,1779123050000,-2204.42,9.589e-05,2]
[422581289,1779123050000,-4445.71,9.589e-05,2]
[422581281,1779123050000,-2297.92,9.589e-05,2]
[422581277,1779123050000,-682.75,9.589e-05,2]
[422581279,1779123050000,-593.85,9.589e-05,2]
[422581264,1779123050000,-483.60057502,9.589e-05,2]
[422581285,1779123050000,-500.0,9.589e-05,2]
[422581251,1779123050000,-1263.49,9.589e-05,2]
[422581228,1779123050000,-500.0,9.589e-05,2]
[422581257,1779123050000,-1276.47,9.589e-05,2]
[422581215,1779123050000,-583.07,9.589e-05,2]
[422581219,1779123050000,-1379.67,9.589e-05,2]
[422581217,1779123050000,-500.0,9.589e-05,2]